bitfinex-derivatives/quotes_SOLF0:USTF0_20250221
["timestamp","ask_amount","ask_price","bid_price","bid_amount"]
[1740148933990,5.6431,177.15,177.05,3.6157]
[1740148934190,30.61943274,177.14,177.05,3.6157]
[1740148934391,0.04056551,177.12,177.08,0.04291621]
[1740148934788,5.6428,177.16,177.05,3.6157]
[1740148934989,0.03936342,177.12,177.08,0.043401]
[1740148935394,0.03936342,177.12,177.11,5.6444]
[1740148935693,33.29603274,177.24,177.09,24.97603274]
[1740148935990,33.29603274,177.24,177.09,26.66253274]
[1740148936583,24.97603274,177.21,177.09,1.6865]
[1740148936893,0.04089464,177.18,177.15,0.04041741]
[1740148937394,0.04089464,177.18,177.15,5.68331741]
[1740148937788,0.04089464,177.18,177.15,0.04041741]
[1740148939093,0.04089464,177.18,177.17,5.6424]
[1740148941196,183.0,177.25,177.22,5.6406]
[1740148941391,24.97603274,177.29,177.15,25.01645015]
[1740148941593,30.61443274,177.3,177.16,1.7064]
[1740148941794,24.97603274,177.3,177.16,1.7064]
[1740148942193,5.6392,177.28,177.16,1.7064]
[1740148942495,0.03681162,177.25,177.21,0.03923576]
[1740148942892,0.03681162,177.25,177.23,5.6405]
[1740148943087,0.03681162,177.25,177.21,0.03923576]
[1740148943388,0.03681162,177.25,177.24,5.6402]
[1740148943593,0.03681162,177.25,177.21,0.03923576]
[1740148944988,5.6408,177.22,177.21,0.03923576]
[1740148945687,5.6406,177.23,177.21,0.03923576]
[1740148945996,24.97603274,177.24,177.21,0.03923576]
[1740148946191,30.61633274,177.24,177.21,0.03923576]
[1740148946391,24.97603274,177.24,177.21,0.03923576]
[1740148946596,0.03681162,177.25,177.21,0.03923576]
[1740148947192,5.67701162,177.25,177.21,0.03923576]
[1740148947394,5.67701162,177.25,177.13,3.4448]
[1740148947395,24.97603274,177.24,177.13,3.4448]
[1740148947594,24.97603274,177.21,177.1,1.7345]
[1740148947793,5.6418,177.2,177.1,1.7345]
[1740148948095,24.97603274,177.21,177.1,1.7345]
[1740148948296,5.6421,177.18,177.1,1.7345]
[1740148948493,24.97603274,177.18,177.07,3.6164]
[1740148948791,0.03764824,177.16,177.12,0.04131781]
[1740148949093,24.97603274,177.13,177.02,3.6164]
[1740148949992,24.97603274,177.16,177.11,5.6441]
[1740148950192,188.6427,177.17,177.06,0.03934026]
[1740148950193,7.687e-05,177.09,177.06,0.03934026]
[1740148950389,183.0,177.17,177.03,24.97603274]
[1740148950788,24.97603274,177.16,177.03,24.97603274]
[1740148950993,24.97603274,177.16,177.02,3.6164]
[1740148951194,183.0,177.17,177.03,24.97603274]
[1740148951389,0.04271069,177.11,177.07,0.04144728]
[1740148951696,0.04271069,177.11,177.1,5.6447]
[1740148953296,0.04271069,177.11,177.07,0.04144728]
[1740148953691,24.97603274,177.1,177.07,0.04144728]
[1740148953893,24.97603274,177.1,176.99,147.74]
[1740148953894,24.97603274,177.1,176.89,147.78]
[1740148954099,24.97603274,177.07,176.97,1.7956]
[1740148954289,5.646,177.06,177.01,5.6473]
[1740148954501,24.97603274,177.04,176.96,7.68760252]
[1740148955094,0.03844725,177.02,176.98,0.04252591]
[1740148955996,0.03844725,177.02,176.99,5.6481]
[1740148956198,0.03844725,177.02,176.98,0.04252591]
[1740148956399,0.03844725,177.02,176.98,5.69072591]
[1740148956792,0.03844725,177.02,176.98,0.04252591]
[1740148958507,0.03844725,177.02,176.98,5.69082591]
[1740148958903,24.97603274,177.01,176.98,0.04252591]
[1740148959506,0.03844725,177.02,176.98,0.04252591]
[1740148959806,0.03844725,177.02,176.99,5.6481]
[1740148960201,0.03844725,177.02,176.98,0.04252591]
[1740148960501,0.03844725,177.02,176.99,5.6481]
[1740148960704,0.03844725,177.02,176.98,0.04252591]
[1740148961104,183.0,177.08,176.98,0.04252591]
[1740148962312,0.04197123,177.05,176.98,0.04252591]
[1740148962810,24.97603274,177.13,177.0,24.97603274]
[1740148963004,207.97603274,177.16,177.01,3.497]
[1740148963205,183.0,177.16,177.03,24.97603274]
[1740148964102,183.0,177.16,177.11,5.6441]
[1740148964308,7.209e-05,177.11,177.06,24.97603274]
[1740148964511,207.97603274,177.22,177.13,5.6435]
[1740148964704,5.6412,177.21,177.06,24.97603274]
[1740148965105,207.97603274,177.22,177.16,5.6427]
[1740148965304,183.0,177.22,177.09,24.97603274]
[1740148965605,183.0,177.22,177.17,5.67832891]
[1740148966008,207.97603274,177.22,177.17,0.03592891]
[1740148966612,183.0,177.22,177.17,0.03592891]
[1740148968010,207.97603274,177.22,177.17,0.03592891]
[1740148968613,5.6412,177.21,177.17,0.03592891]
[1740148969110,213.61703274,177.22,177.17,0.03592891]
[1740148969312,212.61703274,177.22,177.17,0.03592891]
[1740148969513,182.0,177.22,177.17,0.03592891]
[1740148969715,5.6421,177.18,177.17,0.03592891]
[1740148970016,24.97603274,177.19,177.17,0.03592891]
[1740148970218,5.6412,177.21,177.17,0.03592891]
[1740148970414,206.97603274,177.22,177.17,0.03592891]
[1740148971119,24.97603274,177.19,177.17,0.03592891]
[1740148971317,5.6421,177.18,177.17,0.03592891]
[1740148971515,24.97603274,177.19,177.1,1.775]
[1740148971719,24.97603274,177.16,177.03,24.97603274]
[1740148971920,24.97603274,177.16,177.04,1.775]
[1740148972717,0.03728086,177.12,177.08,0.03722132]
[1740148972910,0.03728086,177.12,177.1,5.6444]
[1740148973110,0.03728086,177.12,177.08,0.03722132]
[1740148973421,0.03728086,177.12,177.1,5.6444]
[1740148974120,0.03728086,177.12,177.11,5.6444]
[1740148974515,0.03728086,177.12,177.08,0.03722132]
[1740148975414,24.97603274,177.1,177.08,0.03722132]
[1740148975614,24.97603274,177.1,177.08,5.68232132]
[1740148976321,24.97603274,177.1,177.08,0.03722132]
[1740148976620,0.03728086,177.12,177.08,0.03722132]
[1740148976822,5.68138086,177.12,177.08,0.03722132]
[1740148977021,0.03728086,177.12,177.08,0.03722132]
[1740148977321,5.6444,177.11,177.08,0.03722132]
[1740148977527,24.97603274,177.1,177.08,0.03722132]
[1740148978130,0.03728086,177.12,177.08,0.03722132]
[1740148978623,24.97603274,177.1,177.08,0.03722132]
[1740148979629,0.03728086,177.12,177.08,0.03722132]
[1740148980636,0.03728086,177.12,177.1,5.6444]
[1740148980830,0.03728086,177.12,177.08,0.03722132]
[1740148981233,0.03728086,177.12,177.11,5.6444]
[1740148981634,0.03728086,177.12,177.08,0.03722132]
[1740148981831,0.03728086,177.12,177.1,5.6445]
[1740148982936,5.68158086,177.12,177.08,0.03722132]
[1740148983130,0.03728086,177.12,177.08,0.03722132]
[1740148983331,0.03728086,177.12,177.11,5.6444]
[1740148984335,0.03728086,177.12,177.08,0.03722132]
[1740148984732,5.68158086,177.12,177.08,5.68242132]
[1740148985035,0.03728086,177.12,177.08,5.68242132]
[1740148985235,5.68148086,177.12,177.09,5.6449]
[1740148985426,5.68148086,177.12,177.08,0.03722132]
[1740148985629,0.03728086,177.12,177.08,0.03722132]
[1740148986437,0.03728086,177.12,177.09,5.6448]
[1740148986638,0.03728086,177.12,177.08,0.03722132]
[1740148987037,5.68158086,177.12,177.09,5.6448]
[1740148987241,0.03728086,177.12,177.08,0.03722132]
[1740148987634,5.68158086,177.12,177.09,5.6449]
[1740148989038,0.03728086,177.12,177.09,5.6449]
[1740148989437,0.03728086,177.12,177.1,5.6446]
[1740148989838,0.394,177.2,177.1,5.6446]
[1740148989839,182.0,177.25,177.1,24.97603274]
[1740148990137,24.97603274,177.25,177.19,5.6418]
[1740148990540,30.61613274,177.25,177.11,3.6046]
[1740148990933,24.97603274,177.21,177.16,0.04312134]
[1740148991134,24.97603274,177.17,177.05,1.7759]
[1740148991437,24.97603274,177.13,177.05,1.7759]
[1740148991838,24.97603274,177.16,177.05,1.7759]
[1740148992039,24.97603274,177.16,177.11,5.6441]
[1740148992241,0.03963859,177.12,177.11,5.6441]
[1740148993238,24.97603274,177.21,177.09,0.03690874]
[1740148993541,26.10444619,177.24,177.09,24.97603274]
[1740148994444,26.10444619,177.24,177.15,0.0426584]
[1740148994640,24.97603274,177.21,177.15,0.0426584]
[1740148994844,5.6417,177.2,177.15,0.0426584]
[1740148995340,24.97603274,177.21,177.19,5.6418]
[1740148995536,24.97603274,177.21,177.15,0.0426584]
[1740148995937,30.61733274,177.21,177.16,5.6425]
[1740148996138,30.61733274,177.21,177.15,0.0426584]
[1740148996544,5.6418,177.19,177.15,0.0426584]
[1740148996742,24.97603274,177.21,177.15,0.0426584]
[1740148997447,26.10444619,177.24,177.15,0.0426584]
[1740148997644,1.12841345,177.24,177.15,0.0426584]
[1740148997844,1.12841345,177.24,177.23,5.6405]
[1740148998438,24.97603274,177.3,177.24,5.6402]
[1740148998746,24.97603274,177.3,177.22,0.03677925]
[1740148999135,182.0,177.32,177.22,0.03677925]
[1740148999136,206.97603274,177.32,177.22,0.03677925]
[1740148999550,206.97603274,177.32,177.26,5.6394]
[1740148999750,206.97603274,177.32,177.23,1.8158]
[1740148999942,212.61373274,177.32,177.23,1.8158]
[1740149000139,24.97603274,177.32,177.26,0.03586588]
[1740149000842,24.97603274,177.32,177.26,5.67536588]
[1740149001553,30.61383274,177.32,177.26,5.67536588]
[1740149002049,5.6393,177.27,177.26,0.03586588]
[1740149002247,24.97603274,177.29,177.17,1.7985]
[1740149002451,24.97603274,177.25,177.21,5.6409]
[1740149002656,24.97603274,177.28,177.17,1.7985]
[1740149002842,24.97603274,177.31,177.17,1.7985]
[1740149003352,0.03979068,177.26,177.22,0.04082517]
[1740149004046,0.03979068,177.26,177.23,5.6403]
[1740149004650,0.03979068,177.26,177.22,0.04082517]
[1740149004844,24.97603274,177.25,177.22,0.04082517]
[1740149005345,5.6405,177.23,177.22,0.04082517]
[1740149005944,5.6416,177.2,177.16,1.7682]
[1740149006151,24.97603274,177.19,177.11,1.8428]
[1740149006346,24.97603274,177.19,177.13,5.6436]
[1740149006552,5.6429,177.16,177.11,1.8428]
[1740149006744,24.97603274,177.19,177.11,1.8428]
[1740149007148,0.04171395,177.17,177.13,0.03704309]
[1740149007752,0.04171395,177.17,177.14,5.6432]
[1740149007951,0.04171395,177.17,177.13,0.03704309]
[1740149008353,0.04171395,177.17,177.15,5.6428]
[1740149008549,0.04171395,177.17,177.13,0.03704309]
[1740149008850,0.04171395,177.17,177.14,5.6433]
[1740149009057,0.04171395,177.17,177.13,0.03704309]
[1740149009749,24.97603274,177.15,177.13,0.03704309]
[1740149009953,24.97603274,177.15,177.06,1.8077]
[1740149010550,24.97603274,177.15,177.06,7.4534]
[1740149010756,24.97603274,177.15,177.06,1.8077]
[1740149010953,5.6443,177.12,177.06,1.8077]
[1740149011250,0.03956278,177.12,177.09,0.0379615]
[1740149011645,25.01559552,177.12,177.09,0.0379615]
[1740149013050,25.01559552,177.12,176.99,147.74]
[1740149013254,24.97603274,177.12,177.0,3.569]
[1740149013656,5.6451,177.09,177.05,5.6461]
[1740149013866,24.97603274,177.09,177.0,3.569]
[1740149014357,0.0371383,177.06,177.05,5.6463]
[1740149014556,24.97603274,177.12,177.0,3.569]
[1740149014859,30.62023274,177.12,177.0,3.569]
[1740149015057,24.97603274,177.12,177.0,3.569]
[1740149015258,24.97603274,177.12,177.09,5.6447]
[1740149015462,24.97603274,177.12,177.0,3.569]
[1740149015652,24.97603274,177.12,177.09,0.04208292]
[1740149015653,25.0183337,177.12,177.09,0.04208292]
[1740149015961,24.97603274,177.15,177.02,24.97603274]
[1740149016259,0.03930943,177.12,177.05,24.97603274]
[1740149016458,206.97603274,177.21,177.07,0.04320351]
[1740149016655,0.04313188,177.1,177.06,1.7135]
[1740149016855,24.97603274,177.21,177.06,1.7135]
[1740149017357,24.97603274,177.18,177.06,1.7135]
[1740149017751,5.643,177.16,177.11,5.6442]
[1740149017953,5.643,177.16,177.06,1.7135]
[1740149017954,0.03805701,177.14,177.1,0.03996766]
[1740149018358,0.04319249,177.14,177.1,0.03712496]
[1740149018860,0.04319249,177.14,177.13,5.6437]
[1740149019250,5.6417,177.2,177.16,5.6427]
[1740149019455,24.97603274,177.24,177.09,1.7989]
[1740149019954,5.6419,177.19,177.09,1.7989]
[1740149020158,24.97603274,177.21,177.09,1.7989]
[1740149020456,0.03215777,177.17,177.13,0.0373078]
[1740149021053,5.67465777,177.17,177.13,0.0373078]
[1740149021360,0.03215777,177.17,177.13,0.0373078]
[1740149022563,0.03215777,177.17,177.16,5.6428]
[1740149023262,206.97603274,177.27,177.13,0.0373078]
[1740149023462,24.97603274,177.27,177.1,26.70193274]
[1740149023661,5.6403,177.24,177.19,5.6415]
[1740149024458,5.6403,177.24,177.2,0.03717462]
[1740149024653,24.97603274,177.27,177.2,0.03717462]
[1740149024854,5.639,177.28,177.2,0.03717462]
[1740149025161,24.97603274,177.3,177.22,0.03686008]
[1740149025362,5.6397,177.26,177.22,5.67766008]
[1740149025862,24.97603274,177.3,177.22,0.03686008]
[1740149026667,24.97603274,177.3,177.24,5.6399]
[1740149026862,206.97603274,177.33,177.22,0.03686008]
[1740149027165,5.638,177.32,177.18,24.97603274]
[1740149027359,5.638,177.32,177.26,0.0357507]
[1740149027556,206.97603274,177.33,177.26,0.0357507]
[1740149027761,5.6384,177.3,177.26,0.0357507]
[1740149028064,206.97603274,177.33,177.26,0.0357507]
[1740149028268,24.97603274,177.27,177.26,0.0357507]
[1740149028568,24.97603274,177.31,177.26,0.0357507]
[1740149028964,24.97603274,177.28,177.26,0.0357507]
[1740149029165,5.6405,177.24,177.19,1.7948]
[1740149029369,24.97603274,177.27,177.19,1.7948]
[1740149029767,24.97603274,177.27,177.23,5.6405]
[1740149029963,5.639,177.28,177.19,1.7948]
[1740149030265,182.0,177.29,177.19,1.7948]
[1740149030266,24.97603274,177.32,177.27,5.6391]
[1740149030472,0.0357507,177.25,177.22,0.04138594]
[1740149030664,24.97603274,177.32,177.28,0.04048397]
[1740149030968,5.6384,177.3,177.19,1.7948]
[1740149031169,5.6384,177.3,177.28,0.04089195]
[1740149031365,5.6379,177.32,177.26,5.6393]
[1740149031564,0.0357507,177.31,177.27,0.03800951]
[1740149031766,24.97603274,177.34,177.27,0.03800951]
[1740149031966,5.6738507,177.31,177.27,0.03800951]
[1740149032569,0.0357507,177.31,177.29,5.6385]
[1740149033370,0.0357507,177.31,177.27,0.03800951]
[1740149033566,0.0357507,177.31,177.3,5.6383]
[1740149033770,24.97603274,177.39,177.27,0.03800951]
[1740149034075,5.6361,177.38,177.33,5.6372]
[1740149034265,206.97603274,177.42,177.27,24.97603274]
[1740149034467,5.6369,177.35,177.3,5.638]
[1740149034667,24.97603274,177.39,177.3,5.638]
[1740149034867,24.97603274,177.36,177.31,0.03808398]
[1740149035063,5.6372,177.34,177.28,1.7064]
[1740149035267,24.97603274,177.39,177.32,0.03574577]
[1740149035773,24.97603274,177.39,177.33,5.6373]
[1740149035774,5.6361,177.37,177.33,5.6373]
[1740149035961,5.6361,177.37,177.32,0.03574577]
[1740149035962,24.97603274,177.39,177.32,0.03574577]
[1740149036169,5.6352,177.4,177.35,5.6365]
[1740149036369,182.0,177.42,177.28,1.7064]
[1740149036579,24.97603274,177.43,177.28,1.7064]
[1740149036768,24.97603274,177.43,177.33,0.03814088]
[1740149036964,24.97603274,177.4,177.33,0.03814088]
[1740149037774,5.637,177.34,177.33,0.03814088]
[1740149037974,24.97603274,177.37,177.28,1.7064]
[1740149038175,24.97603274,177.37,177.32,0.04298796]
[1740149038476,5.6366,177.36,177.32,0.04298796]
[1740149038670,24.97603274,177.37,177.32,0.04298796]
[1740149039480,5.6369,177.35,177.32,0.04298796]
[1740149039776,24.97603274,177.37,177.32,0.04298796]
[1740149039973,5.6364,177.36,177.32,5.68058796]
[1740149040178,24.97603274,177.4,177.32,0.04298796]
[1740149040380,24.97603274,177.4,177.28,1.7064]
[1740149040579,24.97603274,177.4,177.34,0.03700021]
[1740149040777,24.97603274,177.43,177.34,0.03700021]
[1740149041585,5.6346,177.42,177.38,5.6355]
[1740149041780,24.97603274,177.43,177.38,5.6355]
[1740149042079,24.97603274,177.43,177.38,5.67358089]
[1740149042276,182.0,177.44,177.38,0.03808089]
[1740149043480,182.0,177.44,177.38,5.67378089]
[1740149044081,182.0,177.44,177.38,0.03808089]
[1740149044281,182.0,177.44,177.39,5.6352]
[1740149044474,182.0,177.44,177.38,0.03808089]
[1740149044677,24.97603274,177.43,177.38,0.03808089]
[1740149045278,5.6354,177.4,177.38,0.03808089]
[1740149045476,24.97603274,177.43,177.38,0.03808089]
[1740149045674,24.97603274,177.4,177.38,0.03808089]
[1740149045876,24.97603274,177.4,177.28,1.7064]
[1740149045877,5.6362,177.37,177.28,1.7064]
[1740149046077,24.97603274,177.4,177.28,1.7064]
[1740149046678,24.97603274,177.4,177.33,5.6371]
[1740149046878,24.97603274,177.4,177.28,1.7064]
[1740149047076,0.03808089,177.38,177.35,0.04152848]
[1740149047278,5.67408089,177.38,177.35,0.04152848]
[1740149047679,0.03808089,177.38,177.35,0.04152848]
[1740149048678,0.03808089,177.38,177.35,5.67812848]
[1740149049082,5.67388089,177.38,177.35,5.67812848]
[1740149049281,5.67388089,177.38,177.35,0.04152848]
[1740149050082,5.6361,177.37,177.35,0.04152848]
[1740149050282,0.03808089,177.38,177.35,0.04152848]
[1740149050579,5.6364,177.36,177.35,0.04152848]
[1740149050782,24.97603274,177.37,177.28,7.345]
[1740149050980,5.6373,177.34,177.28,1.7064]
[1740149051279,24.97603274,177.37,177.31,5.638]
[1740149051477,24.97603274,177.37,177.28,1.7064]
[1740149051983,0.03836881,177.34,177.31,0.03597537]
[1740149052884,5.6377,177.32,177.31,0.03597537]
[1740149053386,0.03836881,177.34,177.31,0.03597537]
[1740149053779,5.6376,177.33,177.31,0.03597537]
[1740149054286,5.6374,177.33,177.31,0.03597537]
[1740149055880,0.03836881,177.34,177.31,0.03597537]
[1740149056077,5.67546881,177.34,177.31,0.03597537]
[1740149056283,0.03836881,177.34,177.31,0.03597537]
[1740149056985,0.03836881,177.34,177.33,5.6373]
[1740149057185,182.0,177.48,177.32,1.6778]
[1740149057385,182.3437,177.48,177.32,3.4061]
[1740149057587,5.6343,177.43,177.32,3.4061]
[1740149057977,182.3437,177.48,177.32,3.4061]
[1740149058181,5.6345,177.42,177.32,3.4061]
[1740149058387,0.03867398,177.41,177.37,0.03743731]
[1740149059484,5.67357398,177.41,177.37,5.67353731]
[1740149060289,5.67357398,177.41,177.38,5.6357]
[1740149060487,5.67357398,177.41,177.37,0.03743731]
[1740149061183,0.03867398,177.41,177.37,0.03743731]
[1740149061388,5.6354,177.4,177.37,0.03743731]
[1740149061986,0.03867398,177.41,177.37,0.03743731]
[1740149062185,0.03867398,177.41,177.37,5.67343731]
[1740149062488,0.03867398,177.41,177.37,0.03743731]
[1740149063188,5.67367398,177.41,177.37,0.03743731]
[1740149063589,5.67367398,177.41,177.37,5.67343731]
[1740149063779,5.67367398,177.41,177.37,0.03743731]
[1740149064186,0.03867398,177.41,177.38,5.6357]
[1740149064789,5.67367398,177.41,177.38,5.6357]
[1740149064989,0.03867398,177.41,177.37,5.67343731]
[1740149065285,0.03867398,177.41,177.37,0.03743731]
[1740149065494,0.03867398,177.41,177.39,5.6353]
[1740149066589,0.03867398,177.41,177.39,5.6354]
[1740149066883,0.03867398,177.41,177.37,0.03743731]
[1740149067284,0.03867398,177.41,177.4,5.6351]
[1740149067687,7.398e-05,177.41,177.4,5.6351]
[1740149067991,7.398e-05,177.41,177.37,3.54593731]
[1740149067992,247.90650169,177.54,177.46,5.6331]
[1740149068291,5.6319,177.51,177.39,24.97603274]
[1740149068484,25.46623274,177.54,177.4,1.6995]
[1740149068682,5.6322,177.5,177.4,1.6995]
[1740149069280,5.6316,177.52,177.47,5.6326]
[1740149069485,193.86180654,177.55,177.43,0.04194235]
[1740149069688,193.86180654,177.55,177.42,24.97603274]
[1740149069890,5.6319,177.51,177.47,0.03986983]
[1740149070091,193.86180654,177.55,177.47,0.03986983]
[1740149070795,193.86180654,177.55,177.48,24.97603274]
[1740149070996,232.63416785,177.57,177.49,3.4254]
[1740149071193,193.86180654,177.61,177.51,24.97603274]
[1740149071599,193.86180654,177.61,177.54,25.01900507]
[1740149071793,193.86180654,177.61,177.54,0.04297233]
[1740149072689,193.86180654,177.61,177.54,5.67337233]
[1740149072897,5.6283,177.62,177.54,0.04297233]
[1740149073099,24.97603274,177.61,177.54,0.04297233]
[1740149073301,5.6288,177.6,177.54,5.67357233]
[1740149073600,24.97603274,177.64,177.54,0.04297233]
[1740149073798,5.6286,177.61,177.55,5.6304]
[1740149073991,5.6286,177.61,177.49,3.4254]
[1740149074195,24.97603274,177.7,177.56,0.03995106]
[1740149074397,5.6265,177.68,177.56,1.7633]
[1740149074694,24.97603274,177.7,177.61,0.04291278]
[1740149075602,30.60163274,177.7,177.63,5.6278]
[1740149075806,24.97603274,177.73,177.58,24.97603274]
[1740149076096,24.97603274,177.73,177.65,0.03716694]
[1740149076289,24.97603274,177.76,177.65,0.03716694]
[1740149076490,24.97603274,177.76,177.61,24.97603274]
[1740149076695,5.6242,177.75,177.68,5.6261]
[1740149076894,24.97603274,177.76,177.69,0.03657628]
[1740149077090,24.97603274,177.73,177.69,0.03657628]
[1740149077296,5.6256,177.71,177.59,3.6213]
[1740149077697,24.97603274,177.73,177.66,5.6266]
[1740149077994,24.97603274,177.73,177.59,3.6213]
[1740149078190,24.97603274,177.73,177.68,0.0403034]
[1740149078394,24.97603274,177.73,177.64,5.6275]
[1740149078599,24.97603274,177.73,177.59,3.6213]
[1740149078600,24.97603274,177.73,177.69,0.04056951]
[1740149078800,24.97603274,177.7,177.69,0.00236951]
[1740149078995,24.97603274,177.7,177.59,3.6213]
[1740149079202,24.97603274,177.73,177.59,3.6213]
[1740149079601,5.6265,177.68,177.62,5.6279]
[1740149079901,0.03882206,177.67,177.63,0.0427759]
[1740149080501,5.66542206,177.67,177.63,0.0427759]
[1740149080897,0.03882206,177.67,177.63,0.0427759]
[1740149085302,16.93,177.92,177.64,24.97603274]
[1740149085503,25.45883274,177.87,177.71,24.97603274]
[1740149085810,25.45883274,177.87,177.72,3.5558]
[1740149086208,5.6207,177.86,177.72,3.5558]
[1740149086603,24.97603274,177.84,177.77,0.03622037]
[1740149086907,24.97603274,177.81,177.67,24.97603274]
[1740149087305,24.97603274,177.81,177.72,5.6249]
[1740149087511,24.97603274,177.81,177.67,24.97603274]
[1740149087709,24.97603274,177.81,177.66,3.5066]
[1740149088106,0.03734591,177.75,177.72,0.03591109]
[1740149089611,0.03734591,177.75,177.72,5.66061109]
[1740149089813,0.03734591,177.75,177.72,0.03591109]
[1740149090512,0.03734591,177.75,177.73,5.6246]
[1740149090711,0.03734591,177.75,177.72,0.03591109]
[1740149091308,0.03734591,177.75,177.74,5.6243]
[1740149092007,0.03734591,177.75,177.73,5.6246]
[1740149092309,0.03734591,177.75,177.72,0.03591109]
[1740149092907,0.03734591,177.75,177.61,24.97603274]
[1740149093106,24.97603274,177.77,177.61,24.97603274]
[1740149093307,24.97603274,177.77,177.69,5.6256]
[1740149093512,5.6247,177.73,177.69,5.6256]
[1740149093711,5.6247,177.73,177.61,24.97603274]
[1740149094014,0.04175727,177.69,177.65,0.03962445]
[1740149094211,24.97603274,177.77,177.65,0.03962445]
[1740149094410,0.0358264,177.69,177.65,0.04061281]
[1740149094811,0.03838438,177.69,177.61,24.97603274]
[1740149095014,0.03838438,177.69,177.68,5.6261]
[1740149095412,0.03838438,177.69,177.65,0.04273723]
[1740149095413,5.6267,177.67,177.65,0.04273723]
[1740149095613,5.6267,177.67,177.6,5.6285]
[1740149095814,24.97603274,177.68,177.53,24.97603274]
[1740149096118,24.97603274,177.68,177.58,5.6291]
[1740149096314,24.97603274,177.68,177.54,1.747]
[1740149096518,24.97603274,177.65,177.54,1.747]
[1740149096716,30.60333274,177.65,177.58,5.66548161]
[1740149096919,0.0404915,177.61,177.58,5.66548161]
[1740149097121,0.0404915,177.61,177.58,0.03618161]
[1740149100318,28.1737,177.82,177.59,24.97603274]
[1740149100512,24.97603274,177.79,177.62,24.97603274]
[1740149100712,24.97603274,177.79,177.63,1.7959]
[1740149100917,0.3649,177.78,177.63,1.7959]
[1740149101217,24.97603274,177.73,177.62,5.6281]
[1740149101521,24.97603274,177.7,177.59,1.7458]
[1740149101711,24.97603274,177.67,177.66,3.953e-05]
[1740149101915,24.97603274,177.67,177.57,1.7959]
[1740149102316,24.97603274,177.67,177.52,1.778]
[1740149102617,24.97603274,177.7,177.55,24.97603274]
[1740149103020,0.03797101,177.64,177.63,5.6276]
[1740149103221,33.07603274,177.76,177.61,24.97603274]
[1740149103420,33.07603274,177.76,177.62,3.49894964]
[1740149103718,33.07603274,177.76,177.62,3.459]
[1740149103921,5.6262,177.68,177.67,0.04248642]
[1740149104214,24.97603274,177.7,177.54,3.459]
[1740149104419,24.97603274,177.69,177.54,3.459]
[1740149104622,24.97603274,177.66,177.54,3.459]
[1740149104919,24.97603274,177.63,177.54,3.459]
[1740149105324,0.03896054,177.6,177.57,0.04330284]
[1740149106519,25.01499328,177.6,177.49,1.8229]
[1740149106819,24.97603274,177.6,177.51,5.6314]
[1740149107020,24.97603274,177.57,177.46,1.7429]
[1740149107217,24.97603274,177.54,177.42,1.7283]
[1740149107417,5.6318,177.51,177.45,5.6335]
[1740149107625,24.97603274,177.54,177.45,5.6335]
[1740149107925,0.03843785,177.5,177.46,0.0390454]
[1740149108718,0.03843785,177.5,177.49,5.6323]
[1740149109123,10.96336494,177.65,177.48,24.97603274]
[1740149109124,8.12,177.62,177.48,24.97603274]
[1740149109321,13.7483,177.62,177.57,5.6297]
[1740149109520,8.12,177.62,177.49,1.7957]
[1740149109818,5.6288,177.6,177.54,5.6306]
[1740149110120,24.97603274,177.57,177.49,1.7957]
[1740149110320,5.63,177.56,177.55,0.03958032]
[1740149110526,25.25733274,177.56,177.4,1.7957]
[1740149110725,24.97603274,177.5,177.4,1.7957]
[1740149110920,1.12644325,177.55,177.4,1.7957]
[1740149110921,24.97603274,177.53,177.4,1.7957]
[1740149111121,1.12644325,177.55,177.45,24.97603274]
[1740149111521,1.12644325,177.55,177.54,5.6307]
[1740149113122,0.04291628,177.56,177.55,5.6304]
[1740149113520,1.628e-05,177.56,177.55,5.6304]
[1740149114227,24.97603274,177.69,177.54,26.73933274]
[1740149114424,24.97603274,177.69,177.55,1.672]
[1740149114621,24.97603274,177.72,177.57,24.97603274]
[1740149114826,193.86180654,177.74,177.66,24.97603274]
[1740149115020,218.83783928,177.81,177.66,24.97603274]
[1740149115428,219.96263541,177.81,177.67,3.5646]
[1740149115632,0.03944351,177.75,177.72,0.03607287]
[1740149116229,0.03944351,177.75,177.74,5.6243]
[1740149116626,194.98660267,177.81,177.72,0.03607287]
[1740149117027,1.12479613,177.81,177.72,0.03607287]
[1740149117332,1.12479613,177.81,177.79,5.6227]
[1740149117526,1.12479613,177.81,177.72,0.03607287]
[1740149117736,1.12479613,177.81,177.69,24.97603274]
[1740149117929,0.03684968,177.78,177.75,0.0414525]
[1740149118234,0.03684968,177.78,177.77,5.6234]
[1740149119639,0.03684968,177.78,177.75,5.6652525]